bitfinex/quotes_SOLUSD_20250315
["timestamp","ask_amount","ask_price","bid_price","bid_amount"]
[1742018880374,0.03,133.6,133.58,91.62660145]
[1742018880974,0.03,133.6,133.58,99.11260145]
[1742018884558,0.03,133.6,133.58,87.219]
[1742018885580,0.03,133.6,133.58,99.11260145]
[1742018885778,0.03,133.6,133.58,87.219]
[1742018888178,0.03,133.6,133.59,0.14216157]
[1742018888682,0.03,133.6,133.59,12.03576302]
[1742018888982,0.03,133.6,133.59,118.04607345]
[1742018893474,0.03,133.6,133.59,106.152472]
[1742018893682,0.03,133.6,133.59,118.04607345]
[1742018894286,0.03,133.6,133.59,91.76876302]
[1742018894468,0.03,133.6,133.59,79.733]
[1742018895984,0.03,133.6,133.59,99.25426302]
[1742018896184,0.03,133.6,133.59,91.76876302]
[1742018896993,0.03,133.6,133.59,99.25426302]
[1742018897292,0.03,133.6,133.59,118.04607345]
[1742018908681,0.03,133.6,133.59,110.56057345]
[1742018909803,0.03,133.6,133.59,118.04607345]
[1742018917804,0.03,133.6,133.59,124.76607345]
[1742018924107,0.03,133.7,133.64,0.14216157]
[1742018924313,5.3839,133.69,133.67,11.89360145]
[1742018925033,0.03,133.69,133.68,11.89360145]
[1742018925314,0.03,133.69,133.68,19.37410145]
[1742018925514,0.03,133.69,133.68,11.89360145]
[1742018925711,0.03,133.69,133.67,11.89360145]
[1742018929222,0.03,133.69,133.68,11.89360145]
[1742018930317,0.03,133.69,133.67,91.59660145]
[1742018934818,0.03,133.69,133.68,11.89360145]
[1742018936112,0.03,133.7,133.69,87.43722314]
[1742018936409,0.03,133.74,133.73,20.28432314]
[1742018936622,0.03,133.74,133.73,137.20057345]
[1742018938528,0.03,133.74,133.73,144.67827345]
[1742018939408,0.03,133.74,133.73,98.40876302]
[1742018942832,0.03,133.74,133.73,91.56660145]
[1742018943029,0.03,133.74,133.73,98.26660145]
[1742018944138,0.03,133.74,133.73,86.373]
[1742018944436,0.03,133.74,133.73,98.26660145]
[1742018947435,0.03,133.74,133.73,91.56660145]
[1742018947637,0.03,133.74,133.73,98.26660145]
[1742018949637,0.03,133.74,133.73,6.7]
[1742018949941,0.03,133.74,133.73,18.59360145]
[1742018950114,35.7683,133.74,133.68,79.673]
[1742018950321,11.89360145,133.72,133.68,79.673]
[1742018950520,15.7683,133.74,133.68,79.673]
[1742018950521,11.89360145,133.71,133.68,79.673]
[1742018951836,7.4794,133.7,133.68,79.673]
[1742018954951,19.37300145,133.7,133.68,79.673]
[1742018955444,19.37300145,133.7,133.65,11.89360145]
[1742018955632,7.4794,133.7,133.65,91.56660145]
[1742018959345,7.4777,133.73,133.68,11.89360145]
[1742018959544,7.4777,133.73,133.66,79.81516157]
[1742018959748,7.4777,133.73,133.68,6.7]
[1742018961144,11.881158,133.7,133.68,6.7]
[1742018961351,19.358858,133.73,133.68,18.581158]
[1742018962754,19.358858,133.73,133.68,6.7]
[1742018965256,19.358858,133.73,133.68,18.581158]
[1742018965943,19.358858,133.73,133.68,6.7]
[1742018967151,7.5077,133.73,133.69,11.881158]
[1742018967350,0.03,133.73,133.69,11.881158]
[1742018972962,0.03,133.73,133.69,91.554158]
[1742018973163,0.03,133.73,133.7,11.881158]
[1742018975160,0.03,133.73,133.7,91.554158]
[1742018977668,0.03,133.73,133.7,79.673]
[1742018978244,7.5077,133.73,133.7,79.673]
[1742018979067,38.083158,133.73,133.7,79.673]
[1742018982061,0.03,133.73,133.7,91.554158]
[1742018983871,0.03,133.73,133.7,79.673]
[1742018994802,0.03,133.73,133.71,11.881158]
[1742018994987,0.03,133.73,133.72,11.881158]
[1742018995484,0.03,133.73,133.71,91.554158]
[1742018996584,0.03,133.73,133.72,11.881158]
[1742018997981,0.03,133.73,133.72,19.50161957]
[1742018998284,0.03,133.73,133.72,12.02331957]
[1742019000085,0.03,133.73,133.72,11.881158]
[1742019000384,0.03,133.73,133.71,91.554158]
[1742019001691,0.03,133.73,133.72,11.881158]
[1742019001884,0.03,133.73,133.71,91.554158]
[1742019002392,0.03,133.73,133.72,11.881158]
[1742019008198,0.03,133.73,133.72,91.554158]
[1742019010008,0.03,133.73,133.72,91.69631957]
[1742019024515,0.03,133.73,133.72,110.48813]
[1742019025823,0.03,133.73,133.72,117.96643]
[1742019034604,0.03,133.74,133.73,87.26286157]
[1742019034829,0.03,133.74,133.73,105.84401957]
[1742019050341,0.03,133.74,133.73,93.96286157]
[1742019050519,0.03,133.74,133.73,124.63583]
[1742019051738,0.03,133.74,133.73,86.343]
[1742019051941,0.03,133.74,133.73,79.643]
[1742019052245,0.03,133.74,133.71,86.52816157]
[1742019052938,0.03,133.74,133.71,98.40931957]
[1742019054149,0.03,133.74,133.71,86.52816157]
[1742019054336,0.03,133.74,133.71,98.40931957]
[1742019060045,0.03,133.74,133.72,11.881158]
[1742019061748,0.03,133.74,133.73,12.02331957]
[1742019062737,0.03,133.74,133.73,19.50101957]
[1742019063537,0.03,133.74,133.73,38.29283]
[1742019063849,0.03,133.74,133.73,117.93583]
[1742019064755,0.03,133.74,133.73,91.66631957]
[1742019065249,0.03,133.74,133.73,79.78516157]
[1742019070340,0.03,133.74,133.73,87.26286157]
[1742019071463,0.03,133.74,133.73,99.14401957]
[1742019072467,0.03,133.74,133.73,117.93583]
[1742019079149,0.03,133.74,133.73,110.45813]
[1742019080170,0.03,133.74,133.73,117.93583]
[1742019082870,0.03,133.74,133.73,124.61583]
[1742019086675,0.03,133.77,133.76,18.933972]
[1742019086874,0.03,133.77,133.76,110.42813]
[1742019087265,0.03,133.77,133.76,117.90413]
[1742019091791,0.03,133.77,133.76,110.42813]
[1742019091997,0.03,133.77,133.76,79.613]
[1742019095197,0.03,133.77,133.75,6.68]
[1742019095583,0.03,133.77,133.74,79.75516157]
[1742019095780,0.03,133.77,133.75,6.68]
[1742019096378,0.03,133.77,133.74,86.43516157]
[1742019103104,0.03,133.77,133.74,79.75516157]
[1742019103308,0.03,133.77,133.74,86.43516157]
[1742019108913,0.03,133.77,133.74,86.49816157]
[1742019120031,11.881158,133.75,133.74,0.063]
[1742019120426,16.964958,133.75,133.74,0.0001]
[1742019122131,24.441558,133.75,133.74,0.0001]
[1742019122727,43.133058,133.75,133.72,0.0001]
[1742019122959,42.73308114,133.73,133.69,0.0001]
[1742019123137,31.881158,133.7,133.69,0.0001]
[1742019123734,42.448758,133.7,133.69,0.0001]
[1742019124251,97.45279,133.7,133.69,0.0001]
[1742019125543,49.928158,133.7,133.69,0.0001]
[1742019126057,24.0008,133.72,133.69,0.0001]
[1742019126058,11.881158,133.71,133.69,0.0001]
[1742019126942,17.186058,133.72,133.69,0.0001]
[1742019127743,7.4778,133.73,133.69,0.0001]
[1742019127744,11.881158,133.73,133.69,0.0001]
[1742019128050,11.881158,133.73,133.69,79.6131]
[1742019130450,11.881158,133.72,133.69,79.6131]
[1742019134055,19.358858,133.73,133.69,79.6131]
[1742019134250,11.881158,133.73,133.69,79.6131]
[1742019135162,11.881158,133.74,133.69,91.494258]
[1742019135340,11.881158,133.75,133.69,91.494258]
[1742019136564,11.881158,133.75,133.69,98.974058]
[1742019136739,11.881158,133.72,133.69,79.6131]
[1742019137952,11.881158,133.73,133.69,79.6131]
[1742019138762,19.359158,133.73,133.69,79.6131]
[1742019140661,11.881158,133.73,133.69,79.6131]
[1742019140846,11.881158,133.74,133.69,98.974058]
[1742019141244,11.881158,133.74,133.69,87.0929]
[1742019143369,11.881158,133.74,133.69,98.974058]
[1742019144471,19.358358,133.74,133.69,98.974058]
[1742019144673,19.358358,133.74,133.69,79.6131]
[1742019154780,19.388358,133.74,133.69,79.6131]
[1742019155379,7.5072,133.74,133.69,87.093]
[1742019155583,7.5072,133.74,133.69,98.974158]
[1742019155776,19.388358,133.74,133.69,98.974158]
[1742019156385,19.388358,133.74,133.69,79.6131]
[1742019164692,0.03,133.74,133.69,79.6131]
[1742019164880,11.911158,133.74,133.69,79.6131]
[1742019165994,11.881158,133.73,133.69,79.6131]
[1742019166802,7.4783,133.72,133.69,79.6131]
[1742019170492,19.358958,133.73,133.69,79.6131]
[1742019170697,19.388458,133.74,133.69,79.6131]
[1742019172495,7.5073,133.74,133.69,91.494258]
[1742019172686,19.388458,133.74,133.69,79.6131]
[1742019173098,0.03,133.74,133.7,18.933972]
[1742019173297,0.03,133.74,133.72,12.02331957]
[1742019173497,0.03,133.74,133.73,6.66]
[1742019173675,0.03,133.74,133.73,18.68331957]
[1742019173879,0.03,133.74,133.73,37.47513]
[1742019175100,0.03,133.74,133.73,25.593972]
[1742019176188,0.03,133.74,133.73,37.47513]
[1742019178189,0.03,133.74,133.73,117.08813]
[1742019179095,0.03,133.74,133.7,161.23472582]
[1742019179096,11.911158,133.74,133.7,79.613]
[1742019179296,11.881158,133.72,133.7,79.613]
[1742019179702,11.881158,133.71,133.7,79.613]
[1742019180606,19.359958,133.71,133.7,79.613]
[1742019180789,19.359958,133.71,133.69,0.0001]
[1742019181104,11.881158,133.7,133.69,0.0001]
[1742019181597,19.360558,133.7,133.69,0.0001]
[1742019189601,66.88519,133.7,133.69,0.0001]
[1742019189806,77.67679,133.7,133.69,0.0001]
[1742019190514,30.152158,133.7,133.69,0.0001]
[1742019193735,11.881158,133.71,133.69,0.0001]
[1742019194028,0.03,133.72,133.69,0.0001]
[1742019195337,0.03,133.72,133.7,11.881158]
[1742019197722,0.03,133.72,133.69,0.28442314]
[1742019197921,0.03,133.72,133.7,0.14216157]
[1742019198530,0.03,133.72,133.7,79.75516157]
[1742019199428,0.03,133.72,133.71,30.81513]
[1742019199815,0.03,133.72,133.71,117.90693]
[1742019200006,0.03,133.72,133.71,127.68653]
[1742019204628,0.03,133.74,133.73,0.14216157]
[1742019204827,0.03,133.74,133.73,98.26631957]
[1742019206936,0.03,133.74,133.73,105.74401957]
[1742019207823,0.03,133.74,133.73,124.53583]
[1742019210244,0.03,133.77,133.76,30.81513]
[1742019210535,0.03,133.77,133.76,110.33813]
[1742019211061,0.03,133.77,133.76,115.35503]
[1742019211832,0.03,133.77,133.76,173.056362]
[1742019212333,0.03,133.77,133.76,133.00773]
[1742019212713,0.03,133.77,133.76,182.15311703]
[1742019212944,0.03,133.77,133.76,181.032362]
[1742019214514,0.03,133.77,133.76,180.532362]
[1742019214720,0.03,133.77,133.76,133.00773]
[1742019216024,0.03,133.77,133.76,134.12842501]
[1742019216246,0.03,133.77,133.76,181.65305701]
[1742019216449,0.03,133.84,133.8,18.933972]
[1742019216622,0.03,133.84,133.81,6.66]
[1742019217252,7.061,133.85,133.81,18.541158]
[1742019219545,7.061,133.85,133.81,6.66]
[1742019219741,18.942158,133.85,133.81,6.66]
[1742019220649,7.061,133.85,133.81,6.66]
[1742019221429,24.310358,133.86,133.81,6.66]
[1742019221763,12.4292,133.86,133.82,12.02331957]
[1742019222249,4.9586,133.86,133.82,12.02331957]
[1742019222444,0.03,133.86,133.82,12.02331957]
[1742019222830,0.03,133.86,133.82,0.14216157]
[1742019222831,11.911158,133.86,133.82,0.14216157]
[1742019223151,0.03,133.86,133.82,12.02331957]
[1742019223738,0.03,133.86,133.82,0.14216157]
[1742019225253,0.03,133.86,133.82,79.60516157]
[1742019225635,11.911158,133.86,133.82,79.60516157]
[1742019225838,11.881158,133.84,133.82,79.463]
[1742019226037,11.881158,133.83,133.82,79.463]
[1742019226854,11.881158,133.84,133.82,79.463]
[1742019228160,19.352958,133.84,133.82,79.463]
[1742019230061,7.4718,133.84,133.82,79.463]
[1742019230943,19.352258,133.85,133.82,79.463]
[1742019231270,19.381658,133.86,133.82,79.463]
[1742019231634,11.881158,133.85,133.82,79.463]
[1742019232358,19.352558,133.85,133.82,79.463]
[1742019233347,7.4714,133.85,133.82,79.463]
[1742019233550,19.381758,133.86,133.82,79.463]
[1742019236365,0.03,133.86,133.82,79.463]
[1742019236549,0.03,133.86,133.82,86.9356]
[1742019238268,0.03,133.86,133.82,98.816758]
[1742019238647,0.03,133.86,133.82,86.9356]
[1742019241169,0.03,133.86,133.82,98.816758]
[1742019242067,0.03,133.86,133.83,0.14216157]
[1742019242365,0.03,133.86,133.83,12.02331957]
[1742019242741,0.03,133.86,133.83,91.48631957]
[1742019243368,0.03,133.86,133.83,98.95821957]
[1742019244481,0.03,133.86,133.83,91.48631957]
[1742019244766,0.03,133.86,133.83,98.95831957]
[1742019245469,0.03,133.86,133.84,11.881158]
[1742019245776,0.03,133.86,133.85,6.64]
[1742019246070,0.03,133.86,133.85,86.103]
[1742019249950,0.03,133.86,133.85,105.59731957]
[1742019250575,0.03,133.86,133.85,124.38913]
[1742019251163,0.03,133.88,133.85,124.38913]
[1742019251164,0.03,133.88,133.87,79.68732314]
[1742019251477,0.03,133.89,133.88,30.81513]
[1742019252568,0.03,133.89,133.88,31.93500155]
[1742019252965,0.03,133.89,133.88,39.40430155]
[1742019253977,0.03,133.89,133.88,152.9722338]
[1742019254175,0.03,133.9,133.89,18.933972]
[1742019254478,0.03,133.9,133.89,30.81513]
[1742019254854,0.03,133.9,133.89,38.28393]
[1742019256461,0.03,133.9,133.89,39.40375318]
[1742019257574,0.03,133.9,133.89,91.42631957]
[1742019258273,11.471158,133.96,133.89,79.54516157]
[1742019258480,7.4654,133.95,133.9,18.521158]
[1742019260364,18.936158,133.96,133.91,11.881158]
[1742019260882,11.881158,133.94,133.89,91.284158]
[1742019261181,11.881158,133.94,133.9,6.64]
[1742019263280,19.347558,133.94,133.9,6.64]
[1742019263486,11.881158,133.93,133.9,6.64]
[1742019266791,19.347658,133.93,133.9,6.64]
[1742019268288,11.881158,133.92,133.9,6.64]
[1742019268472,11.881158,133.91,133.9,6.64]
[1742019270086,17.176458,133.93,133.9,6.64]
[1742019272268,5.2953,133.93,133.9,6.64]
[1742019275390,5.2953,133.93,133.9,14.1082]
[1742019275587,22.152458,133.95,133.9,14.1082]
[1742019276596,11.881158,133.95,133.9,93.5112]
[1742019276791,24.759558,133.96,133.9,93.5112]
[1742019277700,11.881158,133.95,133.9,93.5112]
[1742019278198,11.881158,133.95,133.9,86.043]
[1742019278397,11.881158,133.95,133.9,93.5111]
[1742019279680,24.759558,133.96,133.9,105.392258]
[1742019280493,11.881158,133.95,133.9,93.5111]
[1742019281294,11.881158,133.96,133.9,105.392258]
[1742019282099,11.881158,133.95,133.9,86.043]
[1742019282304,11.881158,133.96,133.9,105.392358]
[1742019283001,11.881158,133.96,133.9,105.455358]
[1742019283205,19.346558,133.95,133.9,93.5742]
[1742019283499,7.4654,133.95,133.9,105.455358]
[1742019283683,19.346558,133.95,133.9,93.5742]
[1742019283884,19.346558,133.95,133.9,86.106]
[1742019284680,11.881158,133.94,133.9,86.106]
[1742019285401,19.347358,133.94,133.9,86.106]
[1742019288590,19.346758,133.95,133.9,86.106]
[1742019288792,0.03,133.96,133.91,12.02331957]
[1742019288981,11.881158,133.95,133.9,86.106]
[1742019289386,11.881158,133.95,133.9,93.5742]
[1742019289901,11.881158,133.95,133.9,79.466]
[1742019290207,11.881158,133.94,133.91,6.64]
[1742019291810,19.346758,133.95,133.91,6.64]
[1742019292706,11.881158,133.95,133.91,6.64]
[1742019294200,19.346658,133.95,133.91,6.64]
[1742019296616,11.911158,133.96,133.91,6.64]
[1742019298916,19.376358,133.96,133.91,6.64]
[1742019300813,11.881158,133.95,133.91,6.64]
[1742019301115,19.346858,133.95,133.91,6.64]
[1742019304599,11.881158,133.95,133.91,6.64]
[1742019304796,0.03,133.96,133.91,14.1074]
[1742019305810,0.03,133.96,133.91,26.051558]
[1742019310227,0.03,133.96,133.91,105.454558]
[1742019311439,0.03,133.96,133.92,11.881158]
[1742019311625,0.03,133.96,133.93,11.881158]
[1742019311809,0.03,133.96,133.93,91.284158]
[1742019312436,0.03,133.96,133.94,7.466]
[1742019312810,0.03,133.96,133.94,86.869]
[1742019313012,0.03,133.96,133.94,103.983558]
[1742019314414,0.03,133.96,133.95,12.02331957]
[1742019314923,0.03,133.96,133.94,96.517558]
[1742019315306,0.03,133.96,133.94,103.983458]
[1742019315717,0.03,133.96,133.94,96.517558]
[1742019315920,0.03,133.99,133.96,79.373]
[1742019316111,0.03,133.99,133.98,11.881158]
[1742019317115,0.03,133.99,133.97,18.501158]
[1742019318222,0.03,133.99,133.98,11.881158]
[1742019319135,0.03,133.99,133.98,91.39631957]
[1742019319513,0.03,133.99,133.98,110.18813]
[1742019320443,0.03,133.99,133.98,117.65193]
[1742019322435,0.03,133.99,133.98,91.39631957]
[1742019322615,0.03,133.99,133.98,98.86011957]
[1742019326449,0.03,133.99,133.98,117.50976843]
[1742019329561,0.03,133.99,133.98,117.65193]
[1742019330132,0.03,133.99,133.98,165.176562]
[1742019332053,0.03,133.99,133.98,117.65193]
[1742019332253,0.03,133.99,133.98,165.176562]
[1742019333453,0.03,134.0,133.99,0.28432314]
[1742019333756,0.03,134.03,134.02,12.16548114]
[1742019333961,0.03,134.03,134.02,98.12848114]
[1742019334256,0.03,134.03,134.02,116.77813]
[1742019335139,0.03,134.03,134.02,124.23963]
[1742019338238,0.03,134.03,134.02,129.61633]
[1742019338843,5.2945,134.1,134.06,0.28432314]
[1742019339050,0.03,134.1,134.08,11.881158]
[1742019339552,0.03,134.1,134.09,11.881158]
[1742019339749,0.03,134.1,134.09,91.194158]
[1742019340192,0.03,134.1,134.09,79.313]
[1742019362127,0.03,134.1,134.09,98.93608114]
[1742019362906,0.03,134.1,134.09,87.05492314]
[1742019364326,0.03,134.1,134.09,79.59732314]
[1742019364532,0.03,134.1,134.09,79.313]
[1742019370215,11.911158,134.1,134.09,79.313]
[1742019370418,0.03,134.1,134.09,79.313]
[1742019374752,0.03,134.1,134.07,6.62]
[1742019380534,0.03,134.1,134.07,85.933]
[1742019396460,21.874958,134.1,134.05,79.313]
[1742019396651,21.874958,134.1,134.0,338.52453225]
[1742019396652,11.881158,134.06,134.03,79.376]
[1742019397456,5.2066,134.09,134.03,79.376]
[1742019397647,11.881158,134.06,134.03,79.376]
[1742019397847,11.881158,134.05,134.03,79.376]
[1742019398365,19.340658,134.06,134.03,79.376]
[1742019398659,11.881158,134.05,134.03,79.376]
[1742019398972,17.087758,134.04,134.03,0.063]
[1742019400066,21.844958,134.05,134.03,0.063]
[1742019400848,11.881158,134.04,134.03,0.063]
[1742019403540,29.304958,134.05,134.03,0.063]
[1742019403748,11.881158,134.04,134.03,0.063]
[1742019405146,19.341558,134.04,134.03,0.063]
[1742019410570,17.341558,134.04,134.03,0.063]
[1742019411164,9.881158,134.04,134.03,0.063]
[1742019412060,17.341558,134.04,134.03,0.063]
[1742019412256,9.881158,134.04,134.03,0.063]
[1742019413686,9.911158,134.04,134.03,0.063]
[1742019413869,17.371558,134.04,134.03,0.063]
[1742019415989,9.911158,134.04,134.03,0.063]
[1742019420278,0.03,134.04,134.03,0.063]
[1742019422088,11.911158,134.04,134.03,0.063]
[1742019423278,19.371558,134.04,134.03,0.063]
[1742019426289,11.911158,134.04,134.03,0.063]
[1742019427372,0.03,134.04,134.03,0.063]
[1742019449304,11.911158,134.04,134.03,0.063]
[1742019450900,19.371558,134.04,134.03,0.063]
[1742019451414,11.911158,134.04,134.03,0.063]
[1742019452408,0.03,134.04,134.03,0.063]
[1742019452731,11.911158,134.04,134.03,0.063]
[1742019453628,0.03,134.04,134.03,0.063]
[1742019473562,0.03,134.04,134.03,7.524]
[1742019477238,0.03,134.04,134.03,0.063]
[1742019477440,11.911158,134.04,134.03,0.063]
[1742019478759,0.03,134.04,134.03,0.063]
[1742019481669,0.03,134.04,134.03,0.34732314]
[1742019482053,0.03,134.04,134.03,7.80832314]
[1742019483267,0.03,134.04,134.03,87.12132314]
[1742019486083,0.03,134.04,134.03,117.65213]
[1742019490528,0.03,134.1,134.08,0.28432314]
[1742019490809,0.03,134.1,134.09,6.6]
[1742019491012,0.03,134.1,134.09,6.88432314]
[1742019492589,0.03,134.1,134.09,14.34192314]
[1742019492791,0.03,134.1,134.09,6.88432314]
[1742019493715,0.03,134.1,134.09,6.6]
[1742019494028,11.911158,134.1,134.08,85.913]
[1742019494812,11.411158,134.1,134.08,85.913]
[1742019495012,11.881158,134.09,134.05,79.313]
[1742019495314,11.881158,134.09,134.06,6.6]
[1742019495617,11.881158,134.08,134.06,6.6]
[1742019496217,11.881158,134.09,134.06,6.6]
[1742019498622,19.338258,134.1,134.06,6.6]
[1742019498795,11.881158,134.09,134.06,6.6]
[1742019499294,11.881158,134.08,134.06,6.6]
[1742019499608,11.881158,134.07,134.03,85.976]
[1742019499789,11.881158,134.06,134.03,85.976]
[1742019500193,7.4588,134.07,134.03,85.976]
[1742019500416,7.4576,134.09,134.03,85.976]
[1742019500615,11.881158,134.07,134.03,85.976]
[1742019501005,11.881158,134.07,134.03,93.4369]
[1742019501312,11.881158,134.08,134.03,93.4369]
[1742019501494,11.881158,134.07,134.03,85.976]
[1742019502814,11.881158,134.06,134.03,85.976]
[1742019505398,19.340458,134.06,134.03,85.976]
[1742019505914,11.881158,134.06,134.03,85.976]
[1742019506128,18.6728,134.1,134.03,85.976]
[1742019506129,19.338758,134.09,134.03,105.317958]
[1742019506921,11.881158,134.08,134.03,105.317958]
[1742019508823,19.339358,134.08,134.03,105.317958]
[1742019509004,19.339358,134.08,134.03,93.4368]
[1742019509405,19.339358,134.08,134.03,85.976]
[1742019509406,11.881158,134.06,134.03,85.976]
[1742019510222,19.340558,134.06,134.03,85.976]
[1742019510917,11.881158,134.06,134.03,85.976]
[1742019511222,19.340058,134.07,134.03,85.976]
[1742019512003,19.339558,134.08,134.03,85.976]
[1742019512313,19.339558,134.08,134.03,93.4368]
[1742019513325,19.338858,134.09,134.03,105.317958]
[1742019513822,11.881158,134.08,134.03,93.4368]
[1742019514326,11.881158,134.09,134.03,105.317958]
[1742019515927,19.339158,134.09,134.03,105.317958]
[1742019516922,19.339158,134.09,134.03,93.4368]
[1742019518428,18.939158,134.09,134.03,93.4368]
[1742019522231,19.368258,134.1,134.03,105.317958]
[1742019523329,19.338958,134.09,134.03,105.317958]
[1742019527233,19.368258,134.1,134.03,93.4368]
[1742019527536,11.881158,134.09,134.03,93.4369]
[1742019528542,7.4582,134.08,134.03,93.4369]
[1742019528843,7.4582,134.08,134.03,85.976]
[1742019530747,19.339358,134.08,134.03,85.976]
[1742019531127,11.881158,134.07,134.03,85.976]
[1742019531642,19.339358,134.08,134.03,85.976]
[1742019532234,7.4582,134.08,134.03,105.318058]
[1742019537128,7.4582,134.08,134.03,97.857158]
[1742019539136,7.4582,134.08,134.03,85.976]
[1742019539137,19.339358,134.08,134.03,85.976]
[1742019539833,19.339358,134.08,134.03,85.956]
[1742019542852,19.339358,134.08,134.03,93.4169]
[1742019543647,19.339358,134.08,134.03,105.298058]
[1742019544043,7.4876,134.09,134.04,11.881158]
[1742019547954,7.4876,134.09,134.03,105.298058]
[1742019548656,7.4876,134.09,134.03,93.4169]
[1742019548861,7.4876,134.09,134.03,105.298058]
[1742019551548,0.03,134.09,134.06,11.881158]
[1742019552266,0.03,134.09,134.05,11.881158]
[1742019552961,0.03,134.09,134.05,19.340858]
[1742019555464,0.03,134.09,134.05,7.4597]
[1742019557573,0.03,134.09,134.05,19.340858]
[1742019563353,0.03,134.09,134.05,7.4597]
[1742019563771,11.881158,134.08,134.04,86.7732]
[1742019564266,11.881158,134.07,134.04,85.893]
[1742019564472,11.881158,134.08,134.04,85.893]
[1742019564665,11.881158,134.08,134.05,0.063]
[1742019571786,11.911158,134.09,134.05,0.063]
[1742019572287,11.881158,134.08,134.05,0.063]
[1742019573888,19.339558,134.08,134.05,0.063]
[1742019574270,11.881158,134.08,134.05,0.063]
[1742019576961,19.368958,134.09,134.05,0.063]
[1742019577163,11.911158,134.09,134.05,0.063]
[1742019577476,11.881158,134.09,134.05,0.063]
[1742019578389,19.338958,134.09,134.05,0.063]
[1742019581089,19.368358,134.1,134.05,0.063]
[1742019582984,11.881158,134.09,134.05,0.063]
[1742019585693,19.338858,134.09,134.05,0.063]
[1742019588295,19.368858,134.09,134.05,0.063]
[1742019588784,11.881158,134.08,134.05,0.063]
[1742019589291,19.368858,134.09,134.05,0.063]
[1742019590778,11.881158,134.08,134.05,0.063]
[1742019592516,11.881158,134.07,134.05,0.063]
[1742019592802,19.339758,134.08,134.05,0.063]
[1742019593108,11.881158,134.07,134.05,0.063]
[1742019595099,11.881158,134.08,134.05,0.063]
[1742019597382,19.339358,134.08,134.05,0.063]
[1742019597704,11.881158,134.08,134.05,0.063]
[1742019597905,19.368958,134.09,134.05,0.063]
[1742019598278,11.881158,134.08,134.05,0.063]
[1742019601104,19.339458,134.08,134.05,0.063]
[1742019601406,11.881158,134.07,134.05,0.063]
[1742019602407,19.339958,134.07,134.05,0.063]
[1742019605605,7.4588,134.07,134.05,0.063]
[1742019614122,19.339558,134.08,134.05,0.063]
[1742019615703,11.881158,134.06,134.05,0.063]
[1742019616015,19.340458,134.06,134.05,0.063]
[1742019618120,11.881158,134.06,134.05,0.063]
[1742019619818,11.881158,134.07,134.05,0.063]
[1742019621632,19.340058,134.07,134.05,0.063]
[1742019623002,11.881158,134.06,134.05,0.063]
[1742019624723,19.340458,134.06,134.05,0.063]
[1742019625022,11.881158,134.06,134.05,0.063]
[1742019625425,19.340458,134.06,134.05,0.063]
[1742019626700,11.881158,134.06,134.05,0.063]